[Event "*** Titled Tuesday 3|2 Blitz"]
[Site "Chess.com"]
[Date "2017.05.02"]
[Round "8"]
[White "saraswathii"]
[Black "pedromartinez91"]
[Result "1-0"]
[WhiteElo "2245"]
[BlackElo "2303"]
[TimeControl "180+2"]
[EndTime "14:47:16 PDT"]
[Termination "saraswathii won by resignation"]

1. e4 {[%clk 0:03:02]} 1... c5 {[%clk 0:02:59.5]} 2. Nf3 {[%clk 0:03:01.3]} 2...
Nc6 {[%clk 0:03:00.4]} 3. d3 {[%clk 0:02:58.6]} 3... g6 {[%clk 0:03:00.5]} 4. g3
{[%clk 0:02:59.7]} 4... Bg7 {[%clk 0:03:00.9]} 5. Bg2 {[%clk 0:02:58.7]} 5... d6
{[%clk 0:03:02.2]} 6. O-O {[%clk 0:02:59.7]} 6... Bg4 {[%clk 0:03:03.3]} 7. c3
{[%clk 0:02:58.6]} 7... e6 {[%clk 0:03:03]} 8. h3 {[%clk 0:02:59.2]} 8... Bxf3
{[%clk 0:03:03.1]} 9. Qxf3 {[%clk 0:02:59.9]} 9... Nge7 {[%clk 0:03:03.8]} 10.
Be3 {[%clk 0:03:00.5]} 10... O-O {[%clk 0:03:03.9]} 11. Na3 {[%clk 0:03:00.9]}
11... Rc8 {[%clk 0:03:03.2]} 12. Nc2 {[%clk 0:03:01.6]} 12... b5 {[%clk
0:03:02.8]} 13. a3 {[%clk 0:03:01.5]} 13... a5 {[%clk 0:03:02.9]} 14. d4 {[%clk
0:03:02.5]} 14... cxd4 {[%clk 0:02:59.8]} 15. cxd4 {[%clk 0:03:04.4]} 15... d5
{[%clk 0:02:59.3]} 16. Qe2 {[%clk 0:03:02.9]} 16... dxe4 {[%clk 0:02:58.4]} 17.
Bxe4 {[%clk 0:02:54.4]} 17... b4 {[%clk 0:02:51.3]} 18. axb4 {[%clk 0:02:45.8]}
18... axb4 {[%clk 0:02:51.8]} 19. Rfd1 {[%clk 0:02:41.7]} 19... b3 {[%clk
0:02:50.5]} 20. Na3 {[%clk 0:02:41.1]} 20... Nd5 {[%clk 0:02:48.5]} 21. Qd3
{[%clk 0:02:31.1]} 21... Rb8 {[%clk 0:02:38.7]} 22. Nc4 {[%clk 0:02:13.4]} 22...
Ncb4 {[%clk 0:02:38.4]} 23. Qxb3 {[%clk 0:02:02.2]} 23... Nxe3 {[%clk
0:02:34.7]} 24. Qxe3 {[%clk 0:01:54.5]} 24... Nd5 {[%clk 0:02:29.7]} 25. Qe2
{[%clk 0:01:52.8]} 25... Rb4 {[%clk 0:02:29.1]} 26. Ne5 {[%clk 0:01:42.9]} 26...
Qd6 {[%clk 0:02:04.7]} 27. Ra6 {[%clk 0:01:27.9]} 27... Rxb2 {[%clk 0:02:05.2]}
28. Qxb2 {[%clk 0:01:22.2]} 28... Qxa6 {[%clk 0:02:05]} 29. Bxd5 {[%clk
0:01:23.7]} 29... exd5 {[%clk 0:02:05.3]} 30. Nd7 {[%clk 0:01:18.5]} 30... Re8
{[%clk 0:01:57.3]} 31. Nc5 {[%clk 0:01:18.6]} 31... Qc4 {[%clk 0:01:55.6]} 32.
Qd2 {[%clk 0:01:10.9]} 32... h5 {[%clk 0:01:51.3]} 33. Qf4 {[%clk 0:01:08.7]}
33... Re2 {[%clk 0:01:38.8]} 34. Qb8+ {[%clk 0:01:07.3]} 34... Kh7 {[%clk
0:01:38.8]} 35. Qf4 {[%clk 0:01:07.5]} 35... Qc2 {[%clk 0:01:34.5]} 36. Rf1
{[%clk 0:01:01.3]} 36... Kg8 {[%clk 0:01:28]} 37. Qb8+ {[%clk 0:00:57.5]} 37...
Bf8 {[%clk 0:01:28.9]} 38. Nd7 {[%clk 0:00:55.7]} 38... Qf5 {[%clk 0:01:13.1]}
39. Qxf8+ {[%clk 0:00:55.8]} 39... Kh7 {[%clk 0:01:14.1]} 40. Ne5 {[%clk
0:00:50]} 40... Re4 {[%clk 0:01:14.2]} 41. Nxf7 {[%clk 0:00:45.3]} 41... Qf6
{[%clk 0:01:12.1]} 42. Qh6+ {[%clk 0:00:38.5]} 42... Kg8 {[%clk 0:01:12.8]} 43.
Ng5 {[%clk 0:00:40]} 43... Re7 {[%clk 0:01:05.8]} 44. h4 {[%clk 0:00:36.5]}
44... Rg7 {[%clk 0:01:01.3]} 45. Re1 {[%clk 0:00:33.1]} 45... Qe7 {[%clk
0:00:33.8]} 46. Rxe7 {[%clk 0:00:32]} 1-0

[Event "*** Titled Tuesday 3|2 Blitz"]
[Site "Chess.com"]
[Date "2017.05.02"]
[Round "8"]
[White "JusticeBot"]
[Black "djano"]
[Result "1-0"]
[WhiteElo "2487"]
[BlackElo "2354"]
[TimeControl "180+2"]
[EndTime "14:47:17 PDT"]
[Termination "JusticeBot won on time"]

1. e4 {[%clk 0:03:02]} 1... e6 {[%clk 0:03:00.7]} 2. d4 {[%clk 0:03:03.2]} 2...
d5 {[%clk 0:03:01.6]} 3. Nd2 {[%clk 0:03:04.8]} 3... dxe4 {[%clk 0:03:02.5]} 4.
Nxe4 {[%clk 0:03:06.7]} 4... Nd7 {[%clk 0:03:03.9]} 5. Bd3 {[%clk 0:03:07.9]}
5... Ngf6 {[%clk 0:03:04.4]} 6. Qe2 {[%clk 0:03:09.6]} 6... c5 {[%clk
0:02:58.5]} 7. Nf3 {[%clk 0:03:01.7]} 7... cxd4 {[%clk 0:02:57.2]} 8. Nxd4
{[%clk 0:03:03.6]} 8... Nxe4 {[%clk 0:02:49.5]} 9. Qxe4 {[%clk 0:02:26.6]} 9...
Nc5 {[%clk 0:02:21]} 10. Bb5+ {[%clk 0:02:27.5]} 10... Bd7 {[%clk 0:02:21.6]}
11. Bxd7+ {[%clk 0:02:21.9]} 11... Qxd7 {[%clk 0:02:23.5]} 12. Qe3 {[%clk
0:02:22.5]} 12... O-O-O {[%clk 0:02:19]} 13. c3 {[%clk 0:02:16]} 13... e5 {[%clk
0:02:19.6]} 14. O-O {[%clk 0:01:47]} 14... exd4 {[%clk 0:02:20.2]} 15. cxd4
{[%clk 0:01:48.3]} 15... Qxd4 {[%clk 0:02:16.1]} 16. Qh3+ {[%clk 0:01:49.5]}
16... Qd7 {[%clk 0:02:15.5]} 17. Qc3 {[%clk 0:01:46.6]} 17... Qd3 {[%clk
0:02:07.5]} 18. Qa5 {[%clk 0:01:42.7]} 18... Qa6 {[%clk 0:01:45.8]} 19. Qc3
{[%clk 0:01:42.1]} 19... Kb8 {[%clk 0:01:32.1]} 20. Bf4+ {[%clk 0:01:41.7]}
20... Ka8 {[%clk 0:01:31.8]} 21. Rac1 {[%clk 0:01:39.6]} 21... Be7 {[%clk
0:01:16.7]} 22. Qxg7 {[%clk 0:01:31.7]} 22... Nd3 {[%clk 0:01:16.7]} 23. Rc7
{[%clk 0:01:20.1]} 23... Nxf4 {[%clk 0:01:13.9]} 24. Rxe7 {[%clk 0:01:20.8]}
24... Qxf1+ {[%clk 0:01:14.8]} 25. Kxf1 {[%clk 0:01:21.3]} 25... Rhg8 {[%clk
0:00:30.6]} 26. Qxf7 {[%clk 0:01:18.8]} 26... Rgf8 {[%clk 0:00:24.8]} 27. Qb3
{[%clk 0:00:53.9]} 27... Rb8 {[%clk 0:00:10.4]} 28. Re4 {[%clk 0:00:51.7]} 28...
Ng6 {[%clk 0:00:07.2]} 29. Ra4 {[%clk 0:00:49.7]} 29... Rf6 {[%clk 0:00:07.7]}
30. g3 {[%clk 0:00:48]} 30... Rbf8 {[%clk 0:00:07.5]} 31. f4 {[%clk 0:00:47.2]}
31... a6 {[%clk 0:00:08.8]} 32. Re4 {[%clk 0:00:45.5]} 32... Rc6 {[%clk
0:00:06.6]} 33. Kg2 {[%clk 0:00:45.1]} 33... Rd8 {[%clk 0:00:07.5]} 34. Rc4
{[%clk 0:00:41.5]} 34... Rxc4 {[%clk 0:00:07]} 35. Qxc4 {[%clk 0:00:43.4]} 35...
Rd2+ {[%clk 0:00:08.4]} 36. Kh3 {[%clk 0:00:44.9]} 36... Rxb2 {[%clk 0:00:08.4]}
37. Qg8+ {[%clk 0:00:45.8]} 37... Ka7 {[%clk 0:00:08.5]} 38. Qxh7 {[%clk
0:00:47.4]} 38... Rb6 {[%clk 0:00:07.3]} 39. f5 {[%clk 0:00:47]} 39... Nf8
{[%clk 0:00:08.4]} 40. Qg7 {[%clk 0:00:46.8]} 1-0

[Event "*** Titled Tuesday 3|2 Blitz"]
[Site "Chess.com"]
[Date "2017.05.02"]
[Round "8"]
[White "Blitzstream"]
[Black "LawrenceTrent"]
[Result "1-0"]
[WhiteElo "2470"]
[BlackElo "2413"]
[TimeControl "180+2"]
[EndTime "14:47:44 PDT"]
[Termination "Blitzstream won by resignation"]

1. g3 {[%clk 0:03:02]} 1... g6 {[%clk 0:03:00.8]} 2. Bg2 {[%clk 0:02:59.9]} 2...
Bg7 {[%clk 0:03:02.4]} 3. d3 {[%clk 0:03:00.2]} 3... Nf6 {[%clk 0:03:03.3]} 4.
b3 {[%clk 0:03:00.3]} 4... O-O {[%clk 0:03:05.2]} 5. Bb2 {[%clk 0:03:01.5]} 5...
c5 {[%clk 0:03:01.9]} 6. e3 {[%clk 0:03:02.5]} 6... Nc6 {[%clk 0:03:02.8]} 7.
Ne2 {[%clk 0:03:03.7]} 7... d5 {[%clk 0:03:04.2]} 8. Nd2 {[%clk 0:03:05]} 8...
e5 {[%clk 0:03:01.1]} 9. h3 {[%clk 0:03:05.6]} 9... Be6 {[%clk 0:03:01.4]} 10.
O-O {[%clk 0:03:03.8]} 10... Nd7 {[%clk 0:03:00.1]} 11. c4 {[%clk 0:03:02.7]}
11... d4 {[%clk 0:02:59.7]} 12. a3 {[%clk 0:02:54.3]} 12... a5 {[%clk
0:02:54.8]} 13. exd4 {[%clk 0:02:39.7]} 13... exd4 {[%clk 0:02:53.3]} 14. Nf4
{[%clk 0:02:39.7]} 14... Re8 {[%clk 0:02:47]} 15. Nxe6 {[%clk 0:02:36.3]} 15...
Rxe6 {[%clk 0:02:42.3]} 16. Bc1 {[%clk 0:02:12.2]} 16... Qe7 {[%clk 0:02:27.4]}
17. Bd5 {[%clk 0:02:02.9]} 17... Re5 {[%clk 0:02:28.4]} 18. Nf3 {[%clk
0:01:32.1]} 18... Rh5 {[%clk 0:02:28.9]} 19. Re1 {[%clk 0:01:22.3]} 19... Qd8
{[%clk 0:02:25.3]} 20. g4 {[%clk 0:01:11.4]} 20... Rxd5 {[%clk 0:02:12.8]} 21.
cxd5 {[%clk 0:01:13.3]} 21... Nce5 {[%clk 0:02:14.1]} 22. Nxe5 {[%clk
0:01:12.7]} 22... Nxe5 {[%clk 0:02:15]} 23. Bf4 {[%clk 0:01:08.9]} 23... Qxd5
{[%clk 0:02:14.7]} 24. Bxe5 {[%clk 0:01:09.7]} 24... Bxe5 {[%clk 0:02:15.6]} 25.
Qe2 {[%clk 0:01:02.2]} 25... Bd6 {[%clk 0:02:07.3]} 26. Rab1 {[%clk 0:00:59.1]}
26... Rd8 {[%clk 0:01:59.6]} 27. Qe4 {[%clk 0:00:57.9]} 27... Qg5 {[%clk
0:02:00.7]} 28. Rf1 {[%clk 0:00:42.5]} 28... b6 {[%clk 0:01:56.7]} 29. f4 {[%clk
0:00:38.8]} 29... Qh4 {[%clk 0:01:57.5]} 30. Kg2 {[%clk 0:00:39.6]} 30... Kg7
{[%clk 0:01:41.9]} 31. Rf3 {[%clk 0:00:36.3]} 31... Rd7 {[%clk 0:01:41.8]} 32.
f5 {[%clk 0:00:21.6]} 32... f6 {[%clk 0:01:39.5]} 33. Qe6 {[%clk 0:00:16.3]}
33... Rd8 {[%clk 0:01:29.9]} 34. Re1 {[%clk 0:00:17.2]} 34... g5 {[%clk
0:01:26]} 35. Re2 {[%clk 0:00:14.5]} 35... h5 {[%clk 0:01:27]} 36. Qe4 {[%clk
0:00:14.4]} 36... Be5 {[%clk 0:01:25.8]} 37. gxh5 {[%clk 0:00:15.4]} 37... Qxh5
{[%clk 0:01:24.8]} 38. Qg4 {[%clk 0:00:16.4]} 38... Qxg4+ {[%clk 0:00:58.5]} 39.
hxg4 {[%clk 0:00:18.3]} 39... a4 {[%clk 0:01:00.1]} 40. bxa4 {[%clk 0:00:19.1]}
40... Ra8 {[%clk 0:01:01.1]} 41. Rh3 {[%clk 0:00:19.8]} 41... Rxa4 {[%clk
0:01:01.6]} 42. Kf3 {[%clk 0:00:21.4]} 42... Rxa3 {[%clk 0:01:02.7]} 43. Ke4
{[%clk 0:00:22.8]} 43... c4 {[%clk 0:01:04]} 44. Rc2 {[%clk 0:00:23.3]} 44... c3
{[%clk 0:01:01.9]} 45. Rc1 {[%clk 0:00:24]} 45... Ra8 {[%clk 0:00:32.7]} 46.
Rch1 {[%clk 0:00:23.8]} 46... Rg8 {[%clk 0:00:33.8]} 47. Rh7+ {[%clk 0:00:24]}
47... Kf8 {[%clk 0:00:34.8]} 48. Ra1 {[%clk 0:00:24.5]} 48... Rg7 {[%clk
0:00:34.9]} 49. Ra8+ {[%clk 0:00:24.5]} 49... Ke7 {[%clk 0:00:32.1]} 50. Rxg7+
{[%clk 0:00:24.1]} 50... Kd6 {[%clk 0:00:33.6]} 51. Rc8 {[%clk 0:00:24.6]} 51...
b5 {[%clk 0:00:34.7]} 52. Rb7 {[%clk 0:00:25.6]} 1-0

[Event "*** Titled Tuesday 3|2 Blitz"]
[Site "Chess.com"]
[Date "2017.05.02"]
[Round "8"]
[White "Alexander_Moskalenko"]
[Black "iturrizaga"]
[Result "1-0"]
[WhiteElo "2690"]
[BlackElo "2672"]
[TimeControl "180+2"]
[EndTime "14:48:03 PDT"]
[Termination "Alexander_Moskalenko won by resignation"]

1. e4 {[%clk 0:03:02]} 1... c5 {[%clk 0:03:00.8]} 2. Nf3 {[%clk 0:03:01.5]} 2...
g6 {[%clk 0:03:02.1]} 3. d4 {[%clk 0:03:00.7]} 3... cxd4 {[%clk 0:03:04]} 4.
Nxd4 {[%clk 0:03:02.6]} 4... Nc6 {[%clk 0:03:04.8]} 5. Nc3 {[%clk 0:03:01.7]}
5... Bg7 {[%clk 0:03:05.8]} 6. Be3 {[%clk 0:03:02.6]} 6... Nf6 {[%clk
0:03:07.3]} 7. Bc4 {[%clk 0:03:04]} 7... O-O {[%clk 0:03:08.8]} 8. Bb3 {[%clk
0:03:00.3]} 8... a5 {[%clk 0:03:10.4]} 9. O-O {[%clk 0:02:36]} 9... d6 {[%clk
0:03:09.9]} 10. Ndb5 {[%clk 0:02:28.8]} 10... b6 {[%clk 0:03:10.9]} 11. a4
{[%clk 0:02:30.4]} 11... Ba6 {[%clk 0:03:12.1]} 12. Re1 {[%clk 0:02:23.2]} 12...
Nd7 {[%clk 0:03:13.2]} 13. Qd2 {[%clk 0:02:20.5]} 13... Nc5 {[%clk 0:03:14.2]}
14. Bd5 {[%clk 0:02:18.3]} 14... Rc8 {[%clk 0:03:14.9]} 15. Bxc6 {[%clk
0:02:19.7]} 15... Rxc6 {[%clk 0:03:14.4]} 16. Bh6 {[%clk 0:02:21.4]} 16... Bxb5
{[%clk 0:02:46.3]} 17. axb5 {[%clk 0:02:17.9]} 17... Rc8 {[%clk 0:02:45]} 18.
Bxg7 {[%clk 0:02:18.4]} 18... Kxg7 {[%clk 0:02:46.9]} 19. Re3 {[%clk 0:02:20.1]}
19... h5 {[%clk 0:02:28.1]} 20. f4 {[%clk 0:02:20.4]} 20... e6 {[%clk
0:02:18.8]} 21. Rf1 {[%clk 0:02:08.8]} 21... f5 {[%clk 0:02:12.1]} 22. Rfe1
{[%clk 0:02:09.2]} 22... Qd7 {[%clk 0:01:30.6]} 23. Kh1 {[%clk 0:02:10.2]} 23...
Kh7 {[%clk 0:01:17.3]} 24. Qf2 {[%clk 0:01:55.6]} 24... Rf6 {[%clk 0:01:08.3]}
25. e5 {[%clk 0:01:51.4]} 25... dxe5 {[%clk 0:00:59.2]} 26. Rxe5 {[%clk
0:01:53.3]} 26... Rd8 {[%clk 0:00:51.5]} 27. h3 {[%clk 0:01:49.4]} 27... Rf7
{[%clk 0:00:51.3]} 28. b3 {[%clk 0:01:47.2]} 28... Qd4 {[%clk 0:00:51.9]} 29.
Qf3 {[%clk 0:01:42.6]} 29... Rfd7 {[%clk 0:00:47.5]} 30. Na4 {[%clk 0:01:43.6]}
30... Nxa4 {[%clk 0:00:45.6]} 31. bxa4 {[%clk 0:01:43.3]} 31... Qxa4 {[%clk
0:00:46.2]} 32. Rxe6 {[%clk 0:01:43.6]} 32... Qxb5 {[%clk 0:00:22.6]} 33. Re7+
{[%clk 0:01:43.3]} 33... Rxe7 {[%clk 0:00:21]} 34. Rxe7+ {[%clk 0:01:45.2]}
34... Kg8 {[%clk 0:00:19.9]} 35. Qg3 {[%clk 0:01:05.7]} 35... Qc6 {[%clk
0:00:15.7]} 36. Qb3+ {[%clk 0:00:59.1]} 36... Qd5 {[%clk 0:00:11.1]} 37. Qxb6
{[%clk 0:00:57.4]} 37... Qd1+ {[%clk 0:00:08.3]} 38. Kh2 {[%clk 0:00:57.1]}
38... Qd6 {[%clk 0:00:05.2]} 39. Qb3+ {[%clk 0:00:58]} 39... Qd5 {[%clk
0:00:04.9]} 40. Qb6 {[%clk 0:00:23.1]} 40... Rd6 {[%clk 0:00:06.1]} 41. Qb8+
{[%clk 0:00:21.2]} 41... Rd8 {[%clk 0:00:06.9]} 42. Qb6 {[%clk 0:00:22.8]} 42...
Rd6 {[%clk 0:00:06.4]} 43. Qc7 {[%clk 0:00:24.2]} 43... Rf6 {[%clk 0:00:04.3]}
1-0

[Event "*** Titled Tuesday 3|2 Blitz"]
[Site "Chess.com"]
[Date "2017.05.02"]
[Round "8"]
[White "RitvarsReimanis"]
[Black "grzechu96"]
[Result "0-1"]
[WhiteElo "2438"]
[BlackElo "2398"]
[TimeControl "180+2"]
[EndTime "14:48:11 PDT"]
[Termination "grzechu96 won by resignation"]

1. d4 {[%clk 0:03:02]} 1... Nf6 {[%clk 0:03:00.9]} 2. c4 {[%clk 0:03:03.2]} 2...
g6 {[%clk 0:03:02.3]} 3. f3 {[%clk 0:03:04.2]} 3... d5 {[%clk 0:03:03.2]} 4.
cxd5 {[%clk 0:03:06.1]} 4... Nxd5 {[%clk 0:03:05.1]} 5. e4 {[%clk 0:03:08]} 5...
Nb6 {[%clk 0:03:06.7]} 6. Nc3 {[%clk 0:03:09.9]} 6... Bg7 {[%clk 0:03:07.9]} 7.
Be3 {[%clk 0:03:11.2]} 7... O-O {[%clk 0:03:08.5]} 8. Qd2 {[%clk 0:03:12.7]}
8... e5 {[%clk 0:03:08.8]} 9. d5 {[%clk 0:03:12.1]} 9... c6 {[%clk 0:03:09.9]}
10. O-O-O {[%clk 0:03:13.1]} 10... cxd5 {[%clk 0:03:11.3]} 11. exd5 {[%clk
0:03:14.5]} 11... N8d7 {[%clk 0:03:12.7]} 12. h4 {[%clk 0:03:14.9]} 12... Nf6
{[%clk 0:03:13.4]} 13. g4 {[%clk 0:03:12.2]} 13... Bd7 {[%clk 0:03:05.4]} 14. h5
{[%clk 0:03:10.1]} 14... Rc8 {[%clk 0:03:05.3]} 15. Kb1 {[%clk 0:03:09.8]} 15...
Na4 {[%clk 0:02:25.9]} 16. hxg6 {[%clk 0:02:55.8]} 16... Nxc3+ {[%clk
0:02:22.7]} 17. bxc3 {[%clk 0:02:57.7]} 17... fxg6 {[%clk 0:02:24.2]} 18. Bh6
{[%clk 0:02:40.4]} 18... Bxh6 {[%clk 0:02:12.9]} 19. Rxh6 {[%clk 0:02:42.3]}
19... e4 {[%clk 0:02:07.2]} 20. g5 {[%clk 0:02:35]} 20... Nh5 {[%clk 0:02:02.2]}
21. Ka1 {[%clk 0:02:22.5]} 21... exf3 {[%clk 0:02:00]} 22. Bd3 {[%clk
0:02:12.4]} 22... Bf5 {[%clk 0:01:18.7]} 23. Nxf3 {[%clk 0:02:12.4]} 23... Qxd5
{[%clk 0:01:05.1]} 24. Bxf5 {[%clk 0:02:06.8]} 24... Qxf5 {[%clk 0:01:06.2]} 25.
Nd4 {[%clk 0:02:06.6]} 25... Qf2 {[%clk 0:00:59.3]} 26. Qd3 {[%clk 0:01:49.6]}
26... Rfe8 {[%clk 0:00:39.5]} 27. Nb5 {[%clk 0:01:20.3]} 27... Qc5 {[%clk
0:00:17.1]} 28. Rh1 {[%clk 0:01:07.4]} 28... Qxg5 {[%clk 0:00:13.2]} 29. R1xh5
{[%clk 0:01:08.3]} 29... Qc1+ {[%clk 0:00:11.9]} 30. Qb1 {[%clk 0:01:07]} 30...
Qxb1+ {[%clk 0:00:13.3]} 31. Kxb1 {[%clk 0:01:08.9]} 31... gxh5 {[%clk
0:00:14.6]} 32. Rxh5 {[%clk 0:01:07.1]} 32... a6 {[%clk 0:00:15]} 33. Nd6 {[%clk
0:01:06.5]} 33... Re1+ {[%clk 0:00:16]} 34. Kb2 {[%clk 0:01:07]} 34... Rc6
{[%clk 0:00:17.2]} 35. Rg5+ {[%clk 0:01:05.7]} 35... Kf8 {[%clk 0:00:17.8]} 36.
Rf5+ {[%clk 0:00:57.6]} 36... Ke7 {[%clk 0:00:19]} 37. Nf7 {[%clk 0:00:57.9]}
37... Rf6 {[%clk 0:00:19.9]} 38. Re5+ {[%clk 0:00:58.1]} 38... Rxe5 {[%clk
0:00:20]} 39. Nxe5 {[%clk 0:00:58.9]} 39... h5 {[%clk 0:00:21.2]} 40. Kc2 {[%clk
0:00:56.7]} 40... h4 {[%clk 0:00:21.8]} 41. Ng4 {[%clk 0:00:58.2]} 41... h3
{[%clk 0:00:22.8]} 42. Kd3 {[%clk 0:00:58.7]} 42... Rf4 {[%clk 0:00:17.9]} 43.
Ne3 {[%clk 0:00:59.1]} 43... h2 {[%clk 0:00:17.7]} 44. Nd5+ {[%clk 0:00:57.1]}
44... Kd6 {[%clk 0:00:18.9]} 45. Nxf4 {[%clk 0:00:58.1]} 45... h1=Q {[%clk
0:00:19.5]} 46. Ne2 {[%clk 0:01:00]} 46... Qb1+ {[%clk 0:00:20.2]} 47. Kd4
{[%clk 0:00:59.6]} 47... Qxa2 {[%clk 0:00:21.3]} 48. Nf4 {[%clk 0:00:58.4]}
48... Qf2+ {[%clk 0:00:21]} 49. Ke4 {[%clk 0:00:59.1]} 49... Qxf4+ {[%clk
0:00:22]} 50. Kxf4 {[%clk 0:01:00.1]} 50... Kc5 {[%clk 0:00:23.9]} 51. Ke3
{[%clk 0:01:01.4]} 51... Kc4 {[%clk 0:00:25.3]} 52. Kd2 {[%clk 0:01:02.6]} 52...
Kb3 {[%clk 0:00:26.3]} 53. Kd3 {[%clk 0:01:04]} 53... a5 {[%clk 0:00:27.5]} 54.
c4 {[%clk 0:01:05.6]} 54... a4 {[%clk 0:00:28.8]} 55. c5 {[%clk 0:01:06.8]}
55... a3 {[%clk 0:00:29.8]} 56. Kd4 {[%clk 0:01:08.4]} 56... a2 {[%clk
0:00:29.8]} 57. Kd5 {[%clk 0:01:09.8]} 57... a1=Q {[%clk 0:00:29.8]} 58. Kd6
{[%clk 0:01:11.3]} 58... Qa4 {[%clk 0:00:30.6]} 0-1

[Event "*** Titled Tuesday 3|2 Blitz"]
[Site "Chess.com"]
[Date "2017.05.02"]
[Round "8"]
[White "chessking2151"]
[Black "GamayevOleg"]
[Result "0-1"]
[WhiteElo "2351"]
[BlackElo "2427"]
[TimeControl "180+2"]
[EndTime "14:48:15 PDT"]
[Termination "GamayevOleg won by resignation"]

1. e4 {[%clk 0:02:44.6]} 1... d6 {[%clk 0:02:59]} 2. d4 {[%clk 0:02:42.6]} 2...
Nf6 {[%clk 0:02:58.8]} 3. Nc3 {[%clk 0:02:42.7]} 3... g6 {[%clk 0:03:00.3]} 4.
f4 {[%clk 0:02:42.4]} 4... Bg7 {[%clk 0:03:00.9]} 5. Nf3 {[%clk 0:02:42.6]} 5...
O-O {[%clk 0:03:01.9]} 6. Be3 {[%clk 0:02:43.9]} 6... Nc6 {[%clk 0:02:58.7]} 7.
Qd2 {[%clk 0:02:39.6]} 7... e5 {[%clk 0:02:58.5]} 8. d5 {[%clk 0:02:24.5]} 8...
exf4 {[%clk 0:02:52.3]} 9. Bxf4 {[%clk 0:02:23.6]} 9... Ne5 {[%clk 0:02:49.6]}
10. O-O-O {[%clk 0:02:20.9]} 10... Nfd7 {[%clk 0:02:04]} 11. Kb1 {[%clk
0:02:21]} 11... Re8 {[%clk 0:02:04.6]} 12. Bb5 {[%clk 0:02:15.3]} 12... a6
{[%clk 0:02:01.9]} 13. Ba4 {[%clk 0:02:13.6]} 13... b5 {[%clk 0:01:48.9]} 14.
Bb3 {[%clk 0:02:13.4]} 14... Nc5 {[%clk 0:01:50.2]} 15. Rhe1 {[%clk 0:02:12.8]}
15... Bd7 {[%clk 0:01:48.1]} 16. a3 {[%clk 0:01:55]} 16... Qb8 {[%clk
0:01:28.3]} 17. Be3 {[%clk 0:01:40.6]} 17... b4 {[%clk 0:01:12.3]} 18. axb4
{[%clk 0:01:40.1]} 18... Nxb3 {[%clk 0:01:04.5]} 19. cxb3 {[%clk 0:01:40]} 19...
Qxb4 {[%clk 0:01:05.4]} 20. Qc2 {[%clk 0:01:37.7]} 20... Rab8 {[%clk 0:01:03]}
21. Nd2 {[%clk 0:01:27.5]} 21... a5 {[%clk 0:00:47.9]} 22. Na2 {[%clk
0:01:25.5]} 22... Qb5 {[%clk 0:00:44.2]} 23. Nc3 {[%clk 0:01:17.5]} 23... Qb4
{[%clk 0:00:42.4]} 24. Na2 {[%clk 0:01:15.3]} 24... Qb7 {[%clk 0:00:43.8]} 25.
h3 {[%clk 0:01:11.3]} 25... a4 {[%clk 0:00:42]} 26. b4 {[%clk 0:01:12]} 26... f5
{[%clk 0:00:34.4]} 27. Rc1 {[%clk 0:01:09.1]} 27... fxe4 {[%clk 0:00:24.6]} 28.
Nxe4 {[%clk 0:00:57.7]} 28... Bf5 {[%clk 0:00:25.2]} 29. Bd2 {[%clk 0:00:48.4]}
29... Nd7 {[%clk 0:00:17.1]} 30. g4 {[%clk 0:00:46.2]} 30... Bxe4 {[%clk
0:00:14.1]} 31. Rxe4 {[%clk 0:00:47.1]} 31... Rxe4 {[%clk 0:00:15.4]} 32. Qxe4
{[%clk 0:00:48.1]} 32... Nb6 {[%clk 0:00:15]} 33. Qe6+ {[%clk 0:00:43.9]} 33...
Kh8 {[%clk 0:00:16.1]} 34. Bc3 {[%clk 0:00:44.1]} 34... Bxc3 {[%clk 0:00:11.2]}
35. Nxc3 {[%clk 0:00:44.4]} 35... Rf8 {[%clk 0:00:08.7]} 36. Qe7 {[%clk
0:00:40.7]} 36... Rf2 {[%clk 0:00:06]} 37. Re1 {[%clk 0:00:35.5]} 37... Nxd5
{[%clk 0:00:04]} 38. Qe8+ {[%clk 0:00:17.6]} 38... Kg7 {[%clk 0:00:04.7]} 39.
Qd7+ {[%clk 0:00:17.3]} 39... Rf7 {[%clk 0:00:04.7]} 40. Qxa4 {[%clk 0:00:18.4]}
40... Nxc3+ {[%clk 0:00:05.6]} 41. bxc3 {[%clk 0:00:20.3]} 41... Qf3 {[%clk
0:00:06.8]} 42. Qc2 {[%clk 0:00:18.8]} 42... Qxh3 {[%clk 0:00:07.7]} 43. g5
{[%clk 0:00:19.8]} 43... Qg4 {[%clk 0:00:08.9]} 44. Qb2 {[%clk 0:00:15.3]} 44...
Qxg5 {[%clk 0:00:09.6]} 45. c4+ {[%clk 0:00:16.5]} 45... Qf6 {[%clk 0:00:11.5]}
46. Qxf6+ {[%clk 0:00:17.1]} 46... Kxf6 {[%clk 0:00:12.5]} 47. Kc2 {[%clk
0:00:17.9]} 47... h5 {[%clk 0:00:13.7]} 48. Rf1+ {[%clk 0:00:18.8]} 48... Kg7
{[%clk 0:00:14.8]} 49. Rg1 {[%clk 0:00:20.3]} 49... Kh6 {[%clk 0:00:15.6]} 50.
Kd3 {[%clk 0:00:21.7]} 50... g5 {[%clk 0:00:17.2]} 51. Re1 {[%clk 0:00:23.3]}
51... h4 {[%clk 0:00:18.2]} 52. Re6+ {[%clk 0:00:24.4]} 52... Kh5 {[%clk
0:00:19.8]} 53. Re8 {[%clk 0:00:26.3]} 53... h3 {[%clk 0:00:21.3]} 54. Rh8+
{[%clk 0:00:27.8]} 54... Kg4 {[%clk 0:00:22.9]} 55. Ke2 {[%clk 0:00:29.3]} 55...
Kg3 {[%clk 0:00:24.4]} 56. Rh5 {[%clk 0:00:29.7]} 56... g4 {[%clk 0:00:25.6]}
57. Ke3 {[%clk 0:00:31.6]} 57... h2 {[%clk 0:00:26]} 58. Ke2 {[%clk 0:00:32.4]}
58... Kg2 {[%clk 0:00:27]} 0-1